bitfinex-derivatives/quotes_ETHF0:USTF0_20241017
["timestamp","ask_amount","ask_price","bid_price","bid_amount"]
[1729186998051,0.80004,2611.7,2611.6,0.38295]
[1729186999151,2.18004,2611.7,2611.6,0.38295]
[1729187000352,1.7971,2611.7,2611.4,1.38]
[1729187000544,2.58716,2611.6,2611.5,0.38296]
[1729187000952,1.20716,2611.6,2611.5,0.38296]
[1729187002253,2.18005,2611.7,2611.6,0.38296]
[1729187002646,1.65028047,2612.0,2611.6,2.18976]
[1729187002949,1.65028047,2612.0,2611.9,1.76292]
[1729187002950,0.4272,2612.0,2611.9,1.76292]
[1729187003149,0.3829,2612.1,2612.0,0.3829]
[1729187003150,1.7629,2612.1,2612.0,0.3829]
[1729187003552,1.38,2612.1,2612.0,0.8097]
[1729187003751,2.80026011,2612.2,2612.1,0.38289]
[1729187003957,2.40956011,2612.2,2612.1,0.78779]
[1729187004147,2.40956011,2612.2,2612.1,2.16779]
[1729187004148,0.60236011,2612.2,2612.1,2.16779]
[1729187004354,3.2078,2612.3,2612.2,0.38287]
[1729187004546,3.2078,2612.3,2612.2,0.79057]
[1729187004547,4.5878,2612.3,2612.2,0.79057]
[1729187004755,1.38,2612.3,2612.2,0.79057]
[1729187005960,0.38287,2612.2,2611.8,3.2078]
[1729187006264,1.38,2612.0,2611.8,1.778]
[1729187006562,1.38,2612.1,2611.9,1.38]
[1729187006863,1.76289,2612.1,2612.0,0.38289]
[1729187007063,1.76289,2612.1,2612.0,0.3829]
[1729187007659,0.3829,2612.0,2611.9,0.3829]
[1729187007854,1.7629,2612.0,2611.9,0.3829]
[1729187009351,1.7629,2612.0,2611.9,1.7629]
[1729187009961,1.7629,2612.0,2611.9,0.3829]
[1729187010365,0.38292,2611.9,2611.8,0.16817304]
[1729187010560,2.17712,2611.9,2611.8,0.16817304]
[1729187010759,2.36529777,2612.1,2612.0,0.3829]
[1729187010955,1.76289,2612.1,2612.0,0.3829]
[1729187012574,1.38,2612.1,2612.0,0.3829]
[1729187013265,2.39660777,2612.2,2612.1,0.38289]
[1729187015670,1.7942,2612.2,2612.1,0.38289]
[1729187015868,1.7942,2612.2,2612.1,1.76289]
[1729187016063,0.4142,2612.2,2612.1,1.76289]
[1729187016271,2.2063,2612.5,2612.1,11.208]
[1729187016566,2.8037295,2612.5,2612.4,0.38284]
[1729187016760,2.2063,2612.5,2612.4,0.38284]
[1729187017674,2.2063,2612.5,2612.4,1.76284]
[1729187017675,1.38,2612.5,2612.4,1.76284]
[1729187020067,1.76283,2612.5,2612.4,0.38284]
[1729187020669,1.38,2612.5,2612.4,0.38284]
[1729187022660,1.76283,2612.5,2612.4,0.38284]
[1729187023071,1.76283,2612.5,2612.3,1.76284]
[1729187023287,0.38286,2612.3,2612.2,0.38287]
[1729187023476,1.76285,2612.4,2612.3,0.38286]
[1729187024376,1.38,2612.4,2612.3,1.76286]
[1729187024575,0.38283,2612.5,2612.4,0.38284]
[1729187024576,1.38,2612.5,2612.4,0.38284]
[1729187024775,1.38,2612.5,2612.4,1.76284]
[1729187025370,1.76283,2612.5,2612.4,1.76284]
[1729187025575,1.76283,2612.5,2612.4,0.38284]
[1729187026281,1.38,2612.5,2612.4,0.38284]
[1729187026480,1.76283,2612.5,2612.4,0.38284]
[1729187026679,1.38,2612.5,2612.4,0.38284]
[1729187026980,1.76283,2612.5,2612.4,0.8194]
[1729187027180,1.76283,2612.5,2612.4,0.4202]
[1729187027585,1.76283,2612.5,2612.4,0.80304]
[1729187027879,1.38,2612.5,2612.3,0.77684]
[1729187028075,1.76284,2612.4,2612.3,0.38284]
[1729187028276,2.59924,2612.4,2612.3,0.38284]
[1729187028582,1.38,2612.4,2612.3,0.38284]
[1729187029074,1.76284,2612.4,2612.3,0.38284]
[1729187029272,0.5969998,2612.6,2612.2,1.38]
[1729187029479,1.0087998,2612.7,2612.4,0.38283]
[1729187029688,1.76283,2612.5,2612.4,0.38284]
[1729187029873,1.38,2612.6,2612.3,1.38]
[1729187030176,1.76282,2612.6,2612.4,0.38283]
[1729187030382,1.38,2612.6,2612.3,1.38]
[1729187030585,0.38283,2612.5,2612.4,0.38284]
[1729187031084,1.38,2612.6,2612.3,1.38]
[1729187031581,1.76282,2612.6,2612.5,0.38283]
[1729187031782,1.38,2612.6,2612.3,1.38]
[1729187031982,0.38284,2612.5,2612.4,0.38284]
[1729187033082,0.38285,2612.4,2612.3,0.38285]
[1729187033280,1.8071,2612.4,2612.3,0.38285]
[1729187033581,1.38,2612.5,2612.4,0.38284]
[1729187033786,1.76282,2612.6,2612.5,0.38283]
[1729187034974,1.38,2612.6,2612.4,2.2056]
[1729187035284,1.38,2612.6,2612.4,1.76283]
[1729187035285,0.38283,2612.5,2612.4,1.76283]
[1729187035579,1.38,2612.5,2612.2,1.7899]
[1729187035788,0.38285,2612.4,2612.3,0.38285]
[1729187035975,0.38283,2612.5,2612.4,0.38283]
[1729187037184,0.99727977,2612.5,2612.4,0.38283]
[1729187038384,1.38010977,2612.5,2612.4,0.38283]
[1729187039575,0.38284,2612.4,2612.3,1.76285]
[1729187040284,1.38011977,2612.5,2612.4,0.38284]
[1729187040786,0.38284,2612.4,2612.3,1.76285]
[1729187041978,0.38284,2612.4,2612.3,0.38285]
[1729187043285,0.38287,2612.2,2612.1,0.80307]
[1729187043484,0.38287,2612.2,2612.1,2.18307]
[1729187043690,0.77087,2612.3,2612.2,0.38287]
[1729187043883,0.77087,2612.3,2612.2,1.76287]
[1729187045799,0.77087,2612.3,2612.2,0.38287]
[1729187047283,1.57727,2612.3,2612.2,0.17160739]
[1729187047480,1.57727,2612.3,2611.8,4.16512]
[1729187047481,2.76210069,2612.3,2611.8,3.2078]
[1729187047685,1.38,2611.9,2611.6,4.146]
[1729187047985,1.38,2611.9,2611.7,1.76294]
[1729187047986,0.79264,2611.8,2611.7,1.76294]
[1729187048384,0.4097,2611.8,2611.7,1.76294]
[1729187048585,0.79263,2611.8,2611.7,1.76294]
[1729187048782,0.4097,2611.8,2611.7,1.76294]
[1729187048980,0.38292,2611.9,2611.8,0.38293]
[1729187049181,0.38292,2611.9,2611.8,1.76293]
[1729187050894,0.38292,2611.9,2611.8,2.16893]
[1729187052082,1.76292,2611.9,2611.8,0.38293]
[1729187052287,2.15362,2611.9,2611.8,0.38293]
[1729187052788,0.38293,2611.8,2611.7,1.76293]
[1729187052982,0.4148,2611.8,2611.7,1.76293]
[1729187053182,0.4148,2611.8,2611.7,2.76648611]
[1729187053379,0.79773,2611.8,2611.7,1.76293]
[1729187054194,0.38291,2612.0,2611.9,0.3829]
[1729187054498,0.3899,2612.0,2611.9,1.7629]
[1729187054685,0.7728,2612.0,2611.9,1.7629]
[1729187054886,0.3899,2612.0,2611.9,2.5945]
[1729187055186,0.3899,2612.0,2611.9,3.59805611]
[1729187055394,0.7728,2612.0,2611.9,2.5945]
[1729187055986,1.8057,2612.2,2611.9,2.2116]
[1729187056191,0.77278,2612.2,2612.1,1.76289]
[1729187057092,1.7699,2612.2,2612.1,1.38]
[1729187057394,2.15277,2612.2,2612.1,1.76289]
[1729187057594,2.15277,2612.2,2612.1,1.38]
[1729187058094,2.15277,2612.2,2612.1,1.76289]
[1729187058595,2.15277,2612.2,2612.1,1.38]
[1729187059295,0.38289,2612.1,2612.0,0.38289]
[1729187059484,1.76289,2612.1,2612.0,0.38289]
[1729187059794,1.76289,2612.1,2612.0,1.76289]
[1729187060782,1.38,2612.1,2612.0,1.76289]
[1729187060992,0.77278,2612.2,2612.1,0.38289]
[1729187061294,2.35110437,2612.3,2612.2,0.38287]
[1729187061490,1.38,2612.3,2612.2,0.38287]
[1729187061691,1.76286,2612.3,2612.2,0.38287]
[1729187062088,0.98873437,2612.4,2612.3,0.38286]
[1729187062289,0.98873437,2612.4,2612.3,2.39471556]
[1729187063595,2.75157437,2612.4,2612.3,0.59071556]
[1729187063985,2.75157437,2612.4,2612.3,0.17331556]
[1729187064382,2.36873437,2612.4,2612.3,0.17331556]
[1729187064991,2.36873437,2612.4,2612.1,1.8061]
[1729187065188,1.38,2612.2,2612.1,2.18899]
[1729187065385,1.76287,2612.2,2612.1,0.38289]
[1729187065892,0.38289,2612.1,2612.0,0.38289]
[1729187066096,2.17839,2612.1,2612.0,0.38289]
[1729187066286,0.38292,2612.0,2611.9,0.38291]
[1729187066484,0.38292,2611.9,2611.8,4.59428611]
[1729187066687,2.57222,2611.9,2611.8,3.59073]
[1729187066898,1.76292,2611.9,2611.8,3.59073]
[1729187068489,0.38292,2611.9,2611.8,3.59073]
[1729187068691,1.76292,2611.9,2611.8,3.59073]
[1729187068891,1.38,2611.9,2611.8,3.59073]
[1729187069195,1.38,2612.0,2611.8,4.5878]
[1729187069402,1.76291,2612.0,2611.9,0.7763]
[1729187069899,1.76291,2612.0,2611.9,0.3829]
[1729187071498,1.38,2612.0,2611.9,0.3829]
[1729187071800,1.7629,2612.0,2611.9,0.3829]
[1729187074304,0.38293,2611.9,2611.8,0.38293]
[1729187074497,1.76293,2611.9,2611.8,0.38293]
[1729187074808,1.76291,2612.0,2611.9,0.3829]
[1729187074995,1.7629,2612.0,2611.9,0.3829]
[1729187077200,2.17839,2612.1,2612.0,0.3829]
[1729187078201,1.7955,2612.1,2612.0,0.3829]
[1729187078697,2.17839,2612.1,2612.0,0.3829]
[1729187079500,1.7955,2612.1,2612.0,0.3829]
[1729187079801,2.17839,2612.1,2612.0,0.3829]
[1729187083411,2.76154055,2612.1,2612.0,0.17498907]
[1729187084408,2.37865055,2612.1,2612.0,0.17498907]
[1729187084603,1.7955,2612.1,2612.0,0.17498907]
[1729187084807,0.99865055,2612.1,2612.0,0.17498907]
[1729187085006,0.4155,2612.1,2612.0,0.17498907]
[1729187085412,0.4155,2612.1,2612.0,0.59378907]
[1729187086004,0.4155,2612.1,2612.0,1.59734518]
[1729187086306,0.99865055,2612.1,2612.0,4.37961652]
[1729187086513,0.4155,2612.1,2612.0,4.37961652]
[1729187086813,0.4155,2612.1,2612.0,4.3796288]
[1729187087513,0.4155,2612.1,2612.0,4.88404276]
[1729187088006,0.4155,2612.1,2612.0,4.8840596]
[1729187088405,0.4155,2612.1,2612.0,1.97378907]
[1729187089908,1.7955,2612.1,2612.0,0.59378907]
[1729187095615,1.7955,2612.1,2612.0,1.59784327]
[1729187095811,1.38,2612.4,2612.3,0.38286]
[1729187096119,2.15154,2612.4,2612.3,0.38286]
[1729187096512,1.7687,2612.4,2612.3,0.38286]
[1729187098214,1.7687,2612.4,2612.3,0.17668287]
[1729187098712,2.34716052,2612.4,2612.3,0.17668287]
[1729187099216,1.7687,2612.4,2612.3,0.17668287]
[1729187099422,2.34716052,2612.4,2612.3,0.17668287]
[1729187099610,1.7687,2612.4,2612.3,0.17668287]
[1729187100011,2.34716052,2612.4,2612.3,0.17668287]
[1729187100917,1.7687,2612.4,2612.3,0.17668287]
[1729187102207,0.3887,2612.4,2612.3,1.55668287]
[1729187102410,0.3887,2612.4,2612.3,2.56094817]
[1729187102706,1.7687,2612.4,2612.3,2.56094817]
[1729187102905,1.7687,2612.4,2612.3,5.76874817]
[1729187103508,1.95846052,2612.5,2612.4,0.38284]
[1729187103714,0.4272,2612.7,2612.6,0.38281]
[1729187103918,1.8072,2612.7,2612.6,0.38281]
[1729187104520,2.38566052,2612.7,2612.6,0.38281]
[1729187105514,1.8072,2612.7,2612.6,0.38281]
[1729187105722,2.38566052,2612.7,2612.6,0.38281]
[1729187106219,1.8072,2612.7,2612.6,0.38281]
[1729187106809,0.38284,2612.4,2612.2,1.0042653]
[1729187107011,2.99497,2612.3,2612.2,0.38286]
[1729187107212,2.6121,2612.3,2612.1,0.38288]
[1729187107414,1.38,2612.1,2612.0,3.5907]
[1729187107617,1.76289,2612.1,2612.0,3.5907]
[1729187107911,1.38,2612.1,2612.0,3.5907]
[1729187108309,1.76289,2612.1,2612.0,3.5907]
[1729187108713,0.38292,2611.9,2611.8,0.38292]
[1729187108914,1.76292,2611.9,2611.8,0.38292]
[1729187109517,0.38296,2611.7,2611.6,0.38295]
[1729187109729,1.76296,2611.7,2611.6,0.38295]
[1729187110018,1.38,2611.7,2611.6,0.38295]
[1729187110222,0.4116,2611.7,2611.6,1.76295]
[1729187110817,1.76291,2612.0,2611.6,1.38]
[1729187111025,1.38,2611.9,2611.8,0.38293]
[1729187111616,0.4116,2612.0,2611.7,1.7678]
[1729187111826,1.7916,2612.0,2611.9,1.76292]
[1729187112127,2.66160441,2612.3,2612.2,0.38287]
[1729187112128,0.4189,2612.3,2612.2,0.38287]
[1729187112316,0.4162,2612.3,2612.2,1.76287]
[1729187112628,1.7962,2612.3,2612.2,0.38287]
[1729187112923,2.17906,2612.3,2612.2,0.38287]
[1729187113119,1.7962,2612.3,2612.0,1.7917]
[1729187113317,1.76289,2612.1,2612.0,0.38289]
[1729187113517,1.76289,2612.1,2611.7,0.95736]
[1729187113518,0.38292,2612.0,2611.9,0.38291]
[1729187113825,2.16802,2612.0,2611.9,0.38291]
[1729187114123,2.16802,2612.0,2611.9,1.76291]
[1729187114124,1.7851,2612.0,2611.9,1.76291]
[1729187114423,1.38,2612.0,2611.9,1.76292]
[1729187114629,1.38,2612.1,2612.0,0.3829]
[1729187115330,1.76289,2612.1,2612.0,0.3829]
[1729187115926,0.38291,2612.0,2611.9,0.3829]
[1729187116126,1.7912,2612.0,2611.6,4.9842]
[1729187116320,2.18733,2611.9,2611.8,0.38293]
[1729187117117,2.18733,2611.9,2611.6,4.9842]
[1729187117118,0.38294,2611.8,2611.6,4.9842]
[1729187117424,0.4244,2611.9,2611.8,0.38293]
[1729187117624,0.4244,2611.9,2611.8,4.1683796]
[1729187117815,0.4244,2611.9,2611.8,2.7671953]
[1729187118018,0.4244,2611.9,2611.8,3.1697953]
[1729187118219,1.38,2612.1,2612.0,0.3829]
[1729187118419,1.7849,2612.1,2612.0,0.3829]
[1729187120838,0.4049,2612.1,2612.0,1.7629]
[1729187121030,0.57278236,2612.3,2612.0,2.3842653]
[1729187121220,0.57278236,2612.3,2612.2,4.97067]
[1729187121221,0.4122,2612.3,2612.2,4.97067]
[1729187121421,1.7852,2612.5,2612.4,0.38284]
[1729187122022,0.4122,2612.6,2612.4,1.38]
[1729187122226,0.4122,2612.6,2612.5,1.76283]
[1729187123232,1.38,2612.9,2612.8,0.38278]
[1729187125928,0.4052,2613.0,2612.9,0.38277]
[1729187127530,0.4126,2613.4,2612.9,6.1978]
[1729187127832,0.4203,2613.4,2613.3,0.38271]
[1729187128226,0.4203,2613.4,2613.3,0.80081]
[1729187130136,0.4073,2613.9,2613.8,0.38264]
[1729187130433,0.8282,2613.9,2613.8,0.38264]
[1729187130731,4.6538,2613.9,2613.8,0.38264]
[1729187131123,4.6538,2613.9,2613.6,3.2078]
[1729187131325,0.8282,2613.9,2613.8,0.38264]
[1729187131730,4.6538,2613.9,2613.8,0.38264]
[1729187132433,0.8282,2613.9,2613.8,0.38264]
[1729187132631,0.4209,2613.9,2613.8,0.38264]
[1729187133328,0.387,2614.1,2614.0,0.38261]
[1729187133523,0.8091,2614.1,2614.0,0.38261]
[1729187135428,0.8091,2614.1,2614.0,0.17836524]
[1729187136937,1.19169,2614.1,2613.9,0.38261]
[1729187137127,0.8091,2614.1,2614.0,0.38261]
[1729187138032,1.19169,2614.1,2614.0,0.38261]
[1729187138536,0.8091,2614.1,2614.0,0.38261]
[1729187139128,1.37947415,2614.1,2614.0,0.38261]
[1729187139638,0.8091,2614.1,2614.0,0.38261]
[1729187141128,1.19169,2614.1,2614.0,0.38261]
[1729187141330,0.8091,2614.1,2614.0,0.38261]
[1729187142443,0.387,2614.1,2614.0,0.38261]
[1729187143041,0.387,2614.1,2614.0,0.79201]
[1729187143249,0.4145,2614.3,2614.2,0.38258]
[1729187143543,0.8351,2614.3,2614.2,0.38258]
[1729187143935,1.21766,2614.3,2614.2,0.38258]
[1729187144135,0.8351,2614.3,2614.2,0.38258]
[1729187145833,0.412,2614.5,2614.2,0.38258]
[1729187146142,0.38254,2614.5,2614.4,0.38254]
[1729187146343,4.01182,2614.6,2614.5,0.38253]
[1729187148038,0.38254,2614.5,2614.4,0.38254]
[1729187148243,4.01182,2614.6,2614.5,0.38253]
[1729187150153,4.01183,2614.6,2614.5,0.38253]
[1729187150647,3.2078,2615.5,2614.5,3.2078]
[1729187150858,0.7988,2615.2,2614.9,3.59027]
[1729187151058,0.4019,2615.1,2614.9,3.59027]
[1729187151258,0.4019,2615.1,2615.0,0.38246]
[1729187151465,0.4019,2615.1,2614.9,3.59027]
[1729187151859,0.4019,2615.1,2615.0,0.38246]
[1729187154264,0.4019,2615.1,2614.9,3.2078]
[1729187154564,4.2259,2615.1,2614.6,0.4112]
[1729187154866,0.4019,2615.1,2614.8,0.38248]
[1729187155159,1.8409,2615.1,2614.8,0.38248]
[1729187156065,1.8409,2615.1,2614.6,0.4112]
[1729187156264,1.8409,2615.1,2614.8,0.38249]
[1729187156763,1.8409,2615.1,2614.9,0.38248]
[1729187156967,1.8409,2615.1,2615.0,0.38246]
[1729187157361,5.6649,2615.1,2615.0,0.38246]
[1729187157761,1.8409,2615.1,2615.0,0.38246]
[1729187158460,0.4019,2615.1,2615.0,0.38246]
[1729187164067,2.3995242,2615.3,2615.2,0.38243]
[1729187164269,1.8368,2615.3,2615.2,0.38243]
[1729187164873,0.3978,2615.3,2615.2,0.38243]
[1729187165559,0.4287,2615.5,2615.2,1.2599]
[1729187165771,0.3978,2615.6,2615.5,0.38239]
[1729187166880,1.8613,2615.8,2615.3,2.99]
[1729187166881,0.22079528,2615.8,2615.3,2.99]
[1729187167168,0.8496,2616.1,2615.5,0.95596]
[1729187167369,1.2319,2616.1,2615.9,0.38232]
[1729187167671,0.8496,2616.1,2615.9,0.38232]
[1729187167870,0.8496,2616.1,2615.5,7.15376]
[1729187167871,0.8496,2616.1,2615.6,0.95593]
[1729187168071,0.8496,2616.1,2615.9,0.38232]
[1729187168575,0.38234,2615.9,2615.6,0.38236]
[1729187168769,0.3904,2615.8,2615.6,0.38236]
[1729187168966,0.77275,2615.8,2615.6,0.38236]
[1729187169464,0.4267,2615.7,2615.6,0.38236]
[1729187170869,0.4267,2615.7,2615.5,3.2078]
[1729187171074,0.8262,2615.7,2615.2,4.021]
[1729187171371,0.8262,2615.7,2615.2,3.6162]
[1729187171569,0.8262,2615.7,2615.2,3.59023]
[1729187171570,0.38241,2615.4,2615.2,3.59023]
[1729187171771,4.98992,2615.7,2615.2,3.2078]
[1729187171772,0.3824,2615.5,2615.2,3.2078]
[1729187171961,0.3824,2615.5,2615.3,0.38241]
[1729187172167,4.034,2615.7,2615.3,0.38241]
[1729187172371,0.3824,2615.4,2615.2,3.59023]
[1729187173572,0.3824,2615.4,2615.3,0.38242]
[1729187173870,4.034,2615.7,2615.3,0.38241]
[1729187174065,0.38241,2615.4,2615.3,0.38242]
[1729187174266,4.034,2615.7,2615.3,0.38242]
[1729187174469,0.38238,2615.6,2615.5,0.38238]
[1729187174663,4.254044,2615.7,2615.3,0.38241]
[1729187174864,0.4275,2615.5,2615.3,0.38241]
[1729187175074,4.636414,2615.7,2615.4,0.3824]
[1729187175274,0.38237,2615.6,2615.5,0.38238]
[1729187175774,4.254044,2615.7,2615.2,3.2078]
[1729187176074,0.38238,2615.6,2615.5,0.38238]
[1729187176271,4.254044,2615.7,2615.3,2.99]
[1729187176272,3.2078,2615.7,2615.3,2.99]
[1729187176478,3.59017,2615.7,2615.4,0.8401]
[1729187176671,0.38237,2615.6,2615.5,0.38238]
[1729187177173,5.0733,2615.9,2615.4,0.8401]
[1729187177174,0.38236,2615.8,2615.4,0.8401]
[1729187177476,0.38236,2615.8,2615.6,0.38237]
[1729187177663,0.38236,2615.7,2615.6,0.38237]
[1729187178165,0.4275,2615.9,2615.5,0.4275]
[1729187178166,0.38237,2615.6,2615.5,0.4275]
[1729187178377,0.38237,2615.7,2615.5,0.80988]
[1729187178577,0.38235,2615.8,2615.7,0.38236]
[1729187178771,1.03362059,2615.9,2615.8,0.38234]
[1729187178974,0.65128059,2615.9,2615.5,0.4275]
[1729187179281,1.03362059,2615.9,2615.8,0.38234]
[1729187179872,0.38236,2615.7,2615.6,0.38237]
[1729187180072,0.38236,2615.8,2615.6,0.38237]
[1729187180274,0.38236,2615.7,2615.6,0.38237]
[1729187180473,0.38236,2615.8,2615.6,0.38237]
[1729187180678,0.38237,2615.7,2615.6,0.38237]
[1729187180872,3.8232,2615.7,2615.2,3.2078]
[1729187181075,0.38241,2615.4,2615.3,0.38241]
[1729187181671,1.2017,2615.5,2615.3,0.3824]
[1729187181980,0.8193,2615.5,2615.4,0.3824]
[1729187182475,1.20169,2615.5,2615.4,0.3824]
[1729187182667,0.8193,2615.5,2615.4,0.3824]
[1729187183068,1.20169,2615.5,2615.4,0.3824]
[1729187183372,0.8193,2615.5,2615.2,3.2078]
[1729187183575,0.8193,2615.5,2615.4,0.3824]
[1729187183782,1.20169,2615.5,2615.4,0.3824]
[1729187184572,0.8193,2615.5,2615.4,0.3824]
[1729187184876,1.20169,2615.5,2615.4,0.3824]
[1729187185184,0.8193,2615.5,2615.4,0.3824]
[1729187185374,0.4255,2615.5,2615.4,0.3824]
[1729187186074,0.79638,2615.6,2615.2,4.16388]
[1729187186381,0.813,2615.8,2615.2,3.2078]
[1729187186577,0.813,2615.8,2615.7,0.38236]
[1729187186775,3.94569,2616.3,2615.5,4.16377]
[1729187186776,3.2078,2616.2,2615.5,4.16377]
[1729187186978,4.42869,2616.2,2616.1,0.3823]
[1729187187479,4.0464,2616.2,2615.8,0.95587]
[1729187187672,4.0464,2616.2,2615.6,1.2323]
[1729187187673,0.3823,2616.1,2616.0,0.38231]
[1729187188074,0.38232,2616.0,2615.9,0.38232]
[1729187188571,0.94862659,2616.1,2615.9,0.38232]
[1729187188774,0.56631659,2616.1,2616.0,0.38232]
[1729187189187,0.94862659,2616.1,2616.0,0.38232]
[1729187189679,0.56631659,2616.1,2616.0,0.38232]
[1729187190082,0.8386,2616.2,2615.8,3.2078]
[1729187190283,1.22089,2616.2,2615.8,3.2078]
[1729187190582,1.22089,2616.2,2616.0,0.3823]
[1729187190781,1.22089,2616.2,2615.8,3.2078]
[1729187190976,1.22089,2616.2,2616.1,0.3823]
[1729187191172,0.8386,2616.2,2615.8,3.2078]
[1729187191377,1.22089,2616.2,2615.8,3.2078]
[1729187191582,1.22089,2616.2,2616.0,0.3823]
[1729187192093,1.22089,2616.2,2616.1,0.3823]
[1729187192388,1.22089,2616.2,2616.0,0.3823]
[1729187192885,0.4241,2616.2,2616.1,0.3823]
[1729187193082,0.3823,2616.1,2615.8,3.2078]
[1729187193281,0.38231,2616.1,2616.0,0.38232]
[1729187193483,0.4241,2616.2,2615.8,3.2078]
[1729187193484,0.38233,2615.9,2615.8,3.59014]
[1729187193683,0.38236,2615.7,2615.6,0.4165]
[1729187193890,0.7993,2615.8,2615.6,0.4165]
[1729187194081,0.7993,2615.8,2615.7,0.38236]
[1729187194283,0.77494,2615.8,2615.7,0.38236]
[1729187194593,0.77494,2615.8,2615.7,0.81056]
[1729187195085,0.3926,2615.8,2615.7,0.81056]
[1729187195387,0.77494,2615.8,2615.7,0.81056]
[1729187196088,0.3926,2615.8,2615.7,0.81056]
[1729187196283,0.62404782,2616.0,2615.7,0.4282]
[1729187196491,0.62404782,2616.0,2615.8,0.38234]
[1729187196695,2.99,2616.3,2616.0,0.38231]
[1729187196878,0.3823,2616.1,2616.0,0.38231]
[1729187197084,3.61329979,2616.3,2615.9,0.3964]
[1729187197281,0.7986,2616.2,2616.1,0.3823]
[1729187197487,0.3823,2616.1,2616.0,0.38231]
[1729187197989,0.79859,2616.2,2616.1,0.3823]
[1729187198180,0.4098,2616.3,2616.2,0.38229]
[1729187198381,0.79207,2616.3,2616.2,0.38229]
[1729187199290,0.38229,2616.2,2616.1,0.38229]
[1729187199889,0.38229,2616.2,2616.0,0.4123]
[1729187200087,0.3823,2616.1,2616.0,0.79461]
[1729187200393,0.3823,2616.1,2616.0,0.79462]
[1729187202489,0.8077,2616.2,2616.1,0.3823]
[1729187202690,0.8077,2616.2,2616.0,0.79461]
[1729187202691,0.3823,2616.1,2616.0,0.79461]
[1729187202891,0.4254,2616.2,2616.0,0.4123]
[1729187203492,0.4254,2616.2,2616.1,0.3823]
[1729187203795,0.38229,2616.2,2616.1,0.3823]
[1729187205497,0.8113,2616.3,2616.2,0.38229]
[1729187205696,0.79207,2616.3,2616.2,0.38229]
[1729187205892,0.4098,2616.3,2616.1,0.8015]
[1729187206092,0.38229,2616.2,2616.1,0.8015]
[1729187206292,0.4098,2616.3,2616.1,0.8015]
[1729187206489,0.38229,2616.2,2616.1,0.8015]
[1729187206895,0.79208,2616.3,2616.2,0.38229]
[1729187207193,0.79208,2616.3,2616.1,0.4192]
[1729187207194,0.38229,2616.2,2616.1,0.4192]
[1729187208296,0.38229,2616.2,2616.1,0.8015]
[1729187209093,0.38229,2616.2,2616.1,0.4192]
[1729187209397,0.38229,2616.2,2616.1,0.3823]
[1729187210892,0.4098,2616.3,2616.2,0.38229]
[1729187211289,0.4098,2616.3,2616.0,0.8312]
[1729187211290,0.56755696,2616.4,2616.0,1.78699]
[1729187211493,0.38227,2616.4,2616.3,0.38227]
[1729187212195,1.18496029,2616.5,2616.2,3.2078]
[1729187212396,0.38226,2616.4,2616.3,0.78896]
[1729187212996,0.78346029,2616.5,2616.3,0.78896]
[1729187213199,0.21590333,2616.5,2616.3,0.78896]
[1729187213500,0.38224,2616.5,2616.4,0.408]
[1729187213901,0.38224,2616.5,2616.4,0.79026]
[1729187214297,0.38224,2616.5,2616.4,0.408]
[1729187216391,0.38224,2616.5,2616.4,0.79026]
[1729187216591,0.38224,2616.5,2616.4,0.408]
[1729187218800,0.38224,2616.5,2616.4,1.21066]
[1729187219194,0.38224,2616.5,2616.4,0.8284]
[1729187220599,0.38224,2616.5,2616.4,1.21066]
[1729187220804,0.38224,2616.5,2616.4,0.8284]
[1729187223411,0.38224,2616.5,2616.4,0.408]
[1729187223904,0.38226,2616.4,2616.3,0.78897]
[1729187225409,1.05403407,2616.6,2616.3,0.4067]
[1729187225610,0.38226,2616.4,2616.3,0.78897]
[1729187225808,1.76226,2616.4,2616.3,2.16897]
[1729187226308,1.38,2616.4,2616.3,2.16897]
[1729187226609,1.76225,2616.5,2616.4,0.38226]
[1729187226808,0.38224,2616.5,2616.4,0.78056]
[1729187227003,1.38,2616.5,2616.4,0.78056]
[1729187228104,1.76224,2616.5,2616.4,0.78056]
[1729187228802,1.38,2616.9,2616.5,0.38224]
[1729187229004,1.38,2616.8,2616.6,1.38]
[1729187229204,1.7622,2616.8,2616.7,0.38221]
[1729187229506,1.38,2616.8,2616.7,0.38221]
[1729187231202,0.38222,2616.7,2616.5,0.79523]
[1729187231508,0.38223,2616.6,2616.5,2.17523]
[1729187231707,0.77593,2616.6,2616.5,2.17523]
[1729187232300,0.77593,2616.6,2616.5,1.793]
[1729187233912,0.77593,2616.6,2616.5,2.17524]
[1729187234802,0.38223,2616.6,2616.5,2.17524]
[1729187241616,1.38,2616.7,2616.5,1.793]
[1729187241822,1.76223,2616.7,2616.6,0.38223]
[1729187242515,0.38223,2616.6,2616.5,0.413]
[1729187242719,1.76223,2616.6,2616.5,0.79524]
[1729187243211,1.38,2616.6,2616.5,0.79524]
[1729187243421,1.76223,2616.6,2616.5,1.7995053]
[1729187243814,0.38223,2616.6,2616.5,1.7995053]
[1729187244220,0.38223,2616.6,2616.5,0.79524]
[1729187244419,0.38223,2616.6,2616.5,1.7995053]
[1729187244824,1.76223,2616.6,2616.5,1.7995053]
[1729187245025,1.76223,2616.6,2616.5,0.79524]
[1729187245426,1.76223,2616.6,2616.5,0.413]
[1729187245625,1.76223,2616.6,2616.5,0.79524]
[1729187247030,0.38223,2616.6,2616.5,0.79524]
[1729187248524,0.38223,2616.6,2616.5,0.413]